[Event "*** Titled Tuesday Blitz"]
[Site "Chess.com"]
[Date "2021.04.20"]
[Round "2"]
[White "Steegersee"]
[Black "rynos0411"]
[Result "0-1"]
[WhiteElo "2215"]
[BlackElo "2441"]
[TimeControl "180+1"]
[EndTime "10:17:46 PDT"]
[Termination "rynos0411 won on time"]

1. c4 {[%clk 0:02:53.4]} 1... Nf6 {[%clk 0:02:58.6]} 2. Nf3 {[%clk 0:02:51.7]}
2... g6 {[%clk 0:02:56.2]} 3. b3 {[%clk 0:02:49.5]} 3... Bg7 {[%clk 0:02:55.6]}
4. Bb2 {[%clk 0:02:47.4]} 4... O-O {[%clk 0:02:56.5]} 5. e3 {[%clk 0:02:47.3]}
5... d6 {[%clk 0:02:53.7]} 6. d4 {[%clk 0:02:41.4]} 6... Nc6 {[%clk 0:02:48.3]}
7. Be2 {[%clk 0:02:25.7]} 7... e5 {[%clk 0:02:44.3]} 8. O-O {[%clk 0:02:21.3]}
8... Bf5 {[%clk 0:02:34.9]} 9. Nc3 {[%clk 0:02:16.2]} 9... Re8 {[%clk
0:02:29.4]} 10. d5 {[%clk 0:01:55.4]} 10... Ne7 {[%clk 0:02:15.6]} 11. Nd2
{[%clk 0:01:38.7]} 11... Bc8 {[%clk 0:02:02.6]} 12. e4 {[%clk 0:01:32.8]} 12...
Nd7 {[%clk 0:01:59.8]} 13. b4 {[%clk 0:01:26.4]} 13... f5 {[%clk 0:01:57]} 14.
Nb3 {[%clk 0:01:24.3]} 14... f4 {[%clk 0:01:54.3]} 15. c5 {[%clk 0:01:22.8]}
15... g5 {[%clk 0:01:46.2]} 16. c6 {[%clk 0:01:07.9]} 16... bxc6 {[%clk
0:01:39.6]} 17. dxc6 {[%clk 0:01:07.5]} 17... Nf6 {[%clk 0:01:40.2]} 18. Bc4+
{[%clk 0:01:02.2]} 18... Kh8 {[%clk 0:01:38.8]} 19. Nd5 {[%clk 0:00:47.9]} 19...
Nxe4 {[%clk 0:01:23.9]} 20. Na5 {[%clk 0:00:27.9]} 20... Nxd5 {[%clk 0:01:17.8]}
21. Bxd5 {[%clk 0:00:26.3]} 21... Nf6 {[%clk 0:01:17.9]} 22. Nb7 {[%clk
0:00:25.6]} 22... Qe7 {[%clk 0:01:18]} 23. f3 {[%clk 0:00:22.2]} 23... g4 {[%clk
0:01:15.4]} 24. Re1 {[%clk 0:00:18.2]} 24... Rb8 {[%clk 0:01:01.2]} 25. Bd4
{[%clk 0:00:15.1]} 25... Bxb7 {[%clk 0:00:47.3]} 26. Bxa7 {[%clk 0:00:13.4]}
26... Ra8 {[%clk 0:00:39.7]} 27. cxb7 {[%clk 0:00:09.3]} 27... Rxa7 {[%clk
0:00:40.1]} 28. fxg4 {[%clk 0:00:10.1]} 28... e4 {[%clk 0:00:34.2]} 29. Bc6
{[%clk 0:00:09.5]} 29... Rb8 {[%clk 0:00:33.2]} 30. a4 {[%clk 0:00:07.4]} 30...
e3 {[%clk 0:00:31.7]} 31. b5 {[%clk 0:00:07.1]} 31... Nd7 {[%clk 0:00:31.3]} 32.
Rc1 {[%clk 0:00:06.2]} 32... Nc5 {[%clk 0:00:31.6]} 33. Qf3 {[%clk 0:00:05.9]}
33... Nd3 {[%clk 0:00:28.3]} 34. Rcd1 {[%clk 0:00:04.7]} 34... Nxe1 {[%clk
0:00:28.2]} 35. Rxe1 {[%clk 0:00:04.4]} 35... Rxa4 {[%clk 0:00:22]} 36. g3
{[%clk 0:00:04.3]} 36... Ra1 {[%clk 0:00:17.6]} 37. Rxa1 {[%clk 0:00:03.2]}
37... Bxa1 {[%clk 0:00:18.5]} 38. Kg2 {[%clk 0:00:03.5]} 38... e2 {[%clk
0:00:18.2]} 39. Qa3 {[%clk 0:00:02.6]} 39... e1=Q {[%clk 0:00:17.2]} 40. Kh3
{[%clk 0:00:03.2]} 40... fxg3 {[%clk 0:00:16]} 41. g5 {[%clk 0:00:00.8]} 41...
Q1e6+ {[%clk 0:00:10.7]} 0-1

[Event "*** Titled Tuesday Blitz"]
[Site "Chess.com"]
[Date "2021.04.20"]
[Round "2"]
[White "amintabatabaei"]
[Black "chess94cu"]
[Result "1-0"]
[WhiteElo "2983"]
[BlackElo "2603"]
[TimeControl "180+1"]
[EndTime "10:17:48 PDT"]
[Termination "amintabatabaei won by resignation"]

1. e4 {[%clk 0:03:00.9]} 1... c5 {[%clk 0:02:57.8]} 2. Nc3 {[%clk 0:02:59.8]}
2... Nc6 {[%clk 0:02:56.9]} 3. f4 {[%clk 0:02:59.5]} 3... g6 {[%clk 0:02:52.5]}
4. Nf3 {[%clk 0:02:59.7]} 4... Bg7 {[%clk 0:02:52.6]} 5. Bb5 {[%clk 0:03:00.5]}
5... e6 {[%clk 0:02:51.7]} 6. Bxc6 {[%clk 0:03:00.1]} 6... dxc6 {[%clk
0:02:51.2]} 7. O-O {[%clk 0:02:58.1]} 7... Ne7 {[%clk 0:02:50.6]} 8. Qe2 {[%clk
0:02:55.7]} 8... O-O {[%clk 0:02:49.9]} 9. b3 {[%clk 0:02:52.4]} 9... b6 {[%clk
0:02:47.5]} 10. e5 {[%clk 0:02:47.3]} 10... Nf5 {[%clk 0:02:37.4]} 11. Bb2
{[%clk 0:02:36.1]} 11... a5 {[%clk 0:02:34.9]} 12. d3 {[%clk 0:02:30]} 12... Nd4
{[%clk 0:02:18]} 13. Qf2 {[%clk 0:02:29.5]} 13... f5 {[%clk 0:02:11]} 14. Na4
{[%clk 0:02:22.4]} 14... Rb8 {[%clk 0:02:02.1]} 15. Nxd4 {[%clk 0:02:20.9]}
15... cxd4 {[%clk 0:02:00.6]} 16. Qxd4 {[%clk 0:02:09.9]} 16... Qxd4+ {[%clk
0:01:58.8]} 17. Bxd4 {[%clk 0:02:10.8]} 17... c5 {[%clk 0:01:59.4]} 18. Be3
{[%clk 0:02:06.9]} 18... Bd7 {[%clk 0:01:59.7]} 19. Nc3 {[%clk 0:02:06.7]} 19...
Bc6 {[%clk 0:01:59.6]} 20. a4 {[%clk 0:02:06.6]} 20... Rfd8 {[%clk 0:01:54.1]}
21. Nb5 {[%clk 0:01:59.7]} 21... Rd7 {[%clk 0:01:50.1]} 22. Rfe1 {[%clk
0:01:54.1]} 22... Rbd8 {[%clk 0:01:47.9]} 23. Kf2 {[%clk 0:01:50.3]} 23... Bf8
{[%clk 0:01:44.5]} 24. Na3 {[%clk 0:01:50.3]} 24... Kf7 {[%clk 0:01:39]} 25. Nc4
{[%clk 0:01:50.4]} 25... Rb8 {[%clk 0:01:39.4]} 26. Rg1 {[%clk 0:01:30.8]} 26...
Be7 {[%clk 0:01:37]} 27. h3 {[%clk 0:01:30.5]} 27... Bh4+ {[%clk 0:00:41.5]} 28.
g3 {[%clk 0:01:24.9]} 28... Be7 {[%clk 0:00:42.2]} 29. Ke2 {[%clk 0:01:20.6]}
29... Rdb7 {[%clk 0:00:33.6]} 30. g4 {[%clk 0:01:18.7]} 30... Rh8 {[%clk
0:00:27.1]} 31. Bf2 {[%clk 0:01:17]} 31... Bd5 {[%clk 0:00:18]} 32. Ne3 {[%clk
0:01:12.4]} 32... Bc6 {[%clk 0:00:17.4]} 33. gxf5 {[%clk 0:01:04.5]} 33... exf5
{[%clk 0:00:18.3]} 34. h4 {[%clk 0:01:04.9]} 34... Rg8 {[%clk 0:00:16.1]} 35. h5
{[%clk 0:01:04.4]} 35... Ke6 {[%clk 0:00:15.3]} 36. hxg6 {[%clk 0:00:53.3]}
36... Rxg6 {[%clk 0:00:16.2]} 37. Rxg6+ {[%clk 0:00:43.7]} 37... hxg6 {[%clk
0:00:17.1]} 38. Rg1 {[%clk 0:00:44.5]} 38... Kf7 {[%clk 0:00:15.9]} 39. e6+
{[%clk 0:00:40.2]} 39... Kxe6 {[%clk 0:00:10]} 40. Rxg6+ {[%clk 0:00:40.1]}
40... Kd7 {[%clk 0:00:10]} 41. Nxf5 {[%clk 0:00:40.5]} 41... Bf8 {[%clk
0:00:10.3]} 42. Rf6 {[%clk 0:00:39.1]} 42... Rb8 {[%clk 0:00:08.5]} 43. d4
{[%clk 0:00:34.9]} 43... Re8+ {[%clk 0:00:08.2]} 44. Kd2 {[%clk 0:00:34.6]}
44... cxd4 {[%clk 0:00:03.9]} 45. Bxd4 {[%clk 0:00:35.5]} 45... Kc7 {[%clk
0:00:04.4]} 46. Be5+ {[%clk 0:00:34.5]} 46... Kb7 {[%clk 0:00:04.2]} 47. Bd6
{[%clk 0:00:29.7]} 47... Rd8 {[%clk 0:00:03.8]} 48. Rxf8 {[%clk 0:00:28.6]} 1-0

[Event "*** Titled Tuesday Blitz"]
[Site "Chess.com"]
[Date "2021.04.20"]
[Round "2"]
[White "VD_coach"]
[Black "Jungle_Jaguar"]
[Result "0-1"]
[WhiteElo "2497"]
[BlackElo "2722"]
[TimeControl "180+1"]
[EndTime "10:17:49 PDT"]
[Termination "Jungle_Jaguar won on time"]

1. Nf3 {[%clk 0:03:00]} 1... d5 {[%clk 0:02:59.5]} 2. g3 {[%clk 0:02:58.7]} 2...
g6 {[%clk 0:02:57.5]} 3. Bg2 {[%clk 0:02:58.1]} 3... Bg7 {[%clk 0:02:57.8]} 4.
d4 {[%clk 0:02:57.9]} 4... c6 {[%clk 0:02:51.8]} 5. O-O {[%clk 0:02:57.3]} 5...
Nf6 {[%clk 0:02:52.3]} 6. c4 {[%clk 0:02:56.9]} 6... O-O {[%clk 0:02:51.7]} 7.
cxd5 {[%clk 0:02:45.6]} 7... cxd5 {[%clk 0:02:51.2]} 8. Nc3 {[%clk 0:02:45.3]}
8... Bf5 {[%clk 0:02:51]} 9. Ne5 {[%clk 0:02:44.9]} 9... Nc6 {[%clk 0:02:50.4]}
10. Bf4 {[%clk 0:02:42.5]} 10... Rc8 {[%clk 0:02:44.3]} 11. Rc1 {[%clk
0:02:41.9]} 11... Qa5 {[%clk 0:02:43.1]} 12. a3 {[%clk 0:02:36.3]} 12... Rfd8
{[%clk 0:02:40.1]} 13. Nxc6 {[%clk 0:02:21.4]} 13... Rxc6 {[%clk 0:02:38.3]} 14.
Be5 {[%clk 0:02:21.5]} 14... Rdc8 {[%clk 0:02:32.9]} 15. Qb3 {[%clk 0:01:58.8]}
15... Rb6 {[%clk 0:02:29.9]} 16. Qa2 {[%clk 0:01:58.6]} 16... e6 {[%clk
0:01:59.1]} 17. Bxf6 {[%clk 0:01:10.5]} 17... Bxf6 {[%clk 0:02:00]} 18. b4
{[%clk 0:00:48.1]} 18... Qa6 {[%clk 0:01:54.4]} 19. Ne4 {[%clk 0:00:47.6]} 19...
Rxc1 {[%clk 0:01:34.6]} 20. Nxf6+ {[%clk 0:00:47.1]} 20... Kg7 {[%clk
0:01:35.2]} 21. Ne8+ {[%clk 0:00:43.2]} 21... Kf8 {[%clk 0:01:35.5]} 22. Rxc1
{[%clk 0:00:39.5]} 22... Kxe8 {[%clk 0:01:35.8]} 23. Qd2 {[%clk 0:00:21.5]}
23... Qxa3 {[%clk 0:01:28.2]} 24. Rc8+ {[%clk 0:00:17.4]} 24... Kd7 {[%clk
0:01:28]} 25. Rc1 {[%clk 0:00:05.2]} 25... Rxb4 {[%clk 0:01:18.6]} 26. g4 {[%clk
0:00:04.8]} 26... Rb1 {[%clk 0:01:09]} 27. Rxb1 {[%clk 0:00:04.7]} 27... Bxb1
{[%clk 0:01:09.9]} 28. Qf4 {[%clk 0:00:05]} 28... f5 {[%clk 0:01:03.6]} 29. gxf5
{[%clk 0:00:04.4]} 29... Bxf5 {[%clk 0:01:04.5]} 30. h3 {[%clk 0:00:04.1]} 30...
g5 {[%clk 0:00:42]} 31. Qxg5 {[%clk 0:00:03.4]} 31... Qa1+ {[%clk 0:00:42.6]}
32. Kh2 {[%clk 0:00:03.3]} 32... Qxd4 {[%clk 0:00:43.1]} 33. Qg8 {[%clk
0:00:02.5]} 33... Qe5+ {[%clk 0:00:42.8]} 34. Kg1 {[%clk 0:00:01.4]} 34... Qa1+
{[%clk 0:00:42.1]} 35. Kh2 {[%clk 0:00:01.4]} 35... Qe5+ {[%clk 0:00:42.5]} 36.
Kg1 {[%clk 0:00:01.8]} 36... Qxe2 {[%clk 0:00:43.1]} 37. Qf7+ {[%clk 0:00:01.9]}
37... Kc6 {[%clk 0:00:40.9]} 38. Qf8 {[%clk 0:00:02.3]} 38... Qe1+ {[%clk
0:00:39.1]} 39. Kh2 {[%clk 0:00:02.6]} 39... Qxf2 {[%clk 0:00:38.8]} 40. Qc8+
{[%clk 0:00:03]} 40... Kb6 {[%clk 0:00:38.1]} 41. Qd8+ {[%clk 0:00:03.2]} 41...
Ka6 {[%clk 0:00:37.1]} 42. Qd6+ {[%clk 0:00:03.7]} 42... Kb5 {[%clk 0:00:35.3]}
43. Qd7+ {[%clk 0:00:03.8]} 43... Kc4 {[%clk 0:00:34]} 44. Qxb7 {[%clk
0:00:03.5]} 44... Be4 {[%clk 0:00:31.2]} 45. Qa6+ {[%clk 0:00:03.6]} 45... Kb3
{[%clk 0:00:27.5]} 46. Qb5+ {[%clk 0:00:03]} 46... Kc2 {[%clk 0:00:27.4]} 47.
Qc5+ {[%clk 0:00:02.6]} 47... Qxc5 {[%clk 0:00:27.1]} 0-1

[Event "*** Titled Tuesday Blitz"]
[Site "Chess.com"]
[Date "2021.04.20"]
[Round "2"]
[White "HouseOfDurin"]
[Black "lamomiablanca"]
[Result "0-1"]
[WhiteElo "2122"]
[BlackElo "2410"]
[TimeControl "180+1"]
[EndTime "10:17:49 PDT"]
[Termination "lamomiablanca won on time"]

1. d4 {[%clk 0:03:00.9]} 1... d5 {[%clk 0:02:59.5]} 2. Bg5 {[%clk 0:03:01.3]}
2... Nf6 {[%clk 0:02:58]} 3. Bxf6 {[%clk 0:03:01]} 3... exf6 {[%clk 0:02:57.9]}
4. e3 {[%clk 0:03:01.8]} 4... c6 {[%clk 0:02:57.6]} 5. c4 {[%clk 0:03:02.2]}
5... dxc4 {[%clk 0:02:56.7]} 6. Bxc4 {[%clk 0:03:03.1]} 6... Bd6 {[%clk
0:02:56.5]} 7. Nc3 {[%clk 0:03:03.1]} 7... O-O {[%clk 0:02:56.4]} 8. Nge2 {[%clk
0:03:02.5]} 8... Nd7 {[%clk 0:02:46.8]} 9. g3 {[%clk 0:03:00.6]} 9... f5 {[%clk
0:02:45.7]} 10. Bd3 {[%clk 0:02:59.7]} 10... Nf6 {[%clk 0:02:44]} 11. Qc2 {[%clk
0:02:58.9]} 11... g6 {[%clk 0:02:42.6]} 12. O-O {[%clk 0:02:55.4]} 12... Be6
{[%clk 0:02:40]} 13. Rfd1 {[%clk 0:02:53.1]} 13... Qe7 {[%clk 0:02:35.5]} 14. a3
{[%clk 0:02:28.9]} 14... Nd5 {[%clk 0:02:29.2]} 15. Nxd5 {[%clk 0:02:22.2]}
15... Bxd5 {[%clk 0:02:29.2]} 16. Nc3 {[%clk 0:02:22.3]} 16... Bf3 {[%clk
0:02:22.2]} 17. Be2 {[%clk 0:02:21.7]} 17... Bxe2 {[%clk 0:02:18.4]} 18. Qxe2
{[%clk 0:02:22.6]} 18... Rfe8 {[%clk 0:02:13.6]} 19. b4 {[%clk 0:02:18.8]} 19...
a5 {[%clk 0:02:06.5]} 20. b5 {[%clk 0:01:27]} 20... Bxa3 {[%clk 0:02:05.5]} 21.
bxc6 {[%clk 0:01:26.6]} 21... bxc6 {[%clk 0:02:05.6]} 22. Ra2 {[%clk 0:01:17.5]}
22... Bb4 {[%clk 0:02:04.3]} 23. Na4 {[%clk 0:01:13.3]} 23... Rad8 {[%clk
0:02:02]} 24. Qc2 {[%clk 0:01:11.8]} 24... Qe6 {[%clk 0:01:56.9]} 25. Rc1 {[%clk
0:01:06.6]} 25... h5 {[%clk 0:01:33.3]} 26. h4 {[%clk 0:01:04.9]} 26... f4
{[%clk 0:01:13.1]} 27. gxf4 {[%clk 0:00:43.2]} 27... Qg4+ {[%clk 0:01:12]} 28.
Kf1 {[%clk 0:00:42.8]} 28... Qxh4 {[%clk 0:01:01.2]} 29. Qxc6 {[%clk 0:00:41.4]}
29... Qg4 {[%clk 0:01:00.5]} 30. Qg2 {[%clk 0:00:31.9]} 30... Qe6 {[%clk
0:00:54.8]} 31. Rac2 {[%clk 0:00:29.6]} 31... Qb3 {[%clk 0:00:49.4]} 32. Nc5
{[%clk 0:00:29.3]} 32... Bxc5 {[%clk 0:00:47.7]} 33. Rxc5 {[%clk 0:00:30.2]}
33... a4 {[%clk 0:00:47.1]} 34. Rxh5 {[%clk 0:00:28.5]} 34... a3 {[%clk
0:00:29]} 35. f5 {[%clk 0:00:27.1]} 35... Qd3+ {[%clk 0:00:27.8]} 36. Kg1 {[%clk
0:00:24.7]} 36... a2 {[%clk 0:00:22.4]} 37. fxg6 {[%clk 0:00:23.9]} 37... fxg6
{[%clk 0:00:21.6]} 38. Rg5 {[%clk 0:00:13.1]} 38... Rd6 {[%clk 0:00:20.6]} 39.
Kh2 {[%clk 0:00:05.4]} 39... Qb1 {[%clk 0:00:17.7]} 40. Rc7 {[%clk 0:00:04.6]}
40... a1=Q {[%clk 0:00:15.8]} 41. Kg3 {[%clk 0:00:02.7]} 41... Qg1 {[%clk
0:00:13.7]} 42. Rcc5 {[%clk 0:00:01]} 42... Qxg2+ {[%clk 0:00:13.5]} 43. Kxg2
{[%clk 0:00:01.9]} 43... Qa8+ {[%clk 0:00:12.3]} 44. Kg3 {[%clk 0:00:01.7]}
44... Qd8 {[%clk 0:00:12.1]} 0-1

[Event "*** Titled Tuesday Blitz"]
[Site "Chess.com"]
[Date "2021.04.20"]
[Round "2"]
[White "Cptn2"]
[Black "champ2005"]
[Result "0-1"]
[WhiteElo "2604"]
[BlackElo "3003"]
[TimeControl "180+1"]
[EndTime "10:17:55 PDT"]
[Termination "champ2005 won by resignation"]

1. e4 {[%clk 0:02:54.2]} 1... g6 {[%clk 0:02:57.4]} 2. Nf3 {[%clk 0:02:54.5]}
2... Bg7 {[%clk 0:02:57.2]} 3. d4 {[%clk 0:02:53.6]} 3... d6 {[%clk 0:02:56.9]}
4. Bd3 {[%clk 0:02:51.5]} 4... Bg4 {[%clk 0:02:54.6]} 5. c3 {[%clk 0:02:50.3]}
5... Nd7 {[%clk 0:02:51.2]} 6. h3 {[%clk 0:02:50.3]} 6... Bxf3 {[%clk
0:02:51.4]} 7. Qxf3 {[%clk 0:02:51.2]} 7... e5 {[%clk 0:02:52]} 8. d5 {[%clk
0:02:47.6]} 8... Ne7 {[%clk 0:02:51.8]} 9. h4 {[%clk 0:02:41.5]} 9... h5 {[%clk
0:02:49]} 10. Bg5 {[%clk 0:02:35.5]} 10... Bh6 {[%clk 0:02:41.6]} 11. Bf6 {[%clk
0:02:23.3]} 11... Nxf6 {[%clk 0:02:34.9]} 12. Qxf6 {[%clk 0:02:24.2]} 12... O-O
{[%clk 0:02:08]} 13. Nd2 {[%clk 0:02:07.7]} 13... Nc8 {[%clk 0:01:36.4]} 14. Qf3
{[%clk 0:02:02.1]} 14... Qd7 {[%clk 0:01:36.6]} 15. O-O-O {[%clk 0:01:55.5]}
15... Kg7 {[%clk 0:01:30.1]} 16. Rdg1 {[%clk 0:01:45.8]} 16... Qg4 {[%clk
0:01:29.8]} 17. Qxg4 {[%clk 0:01:34.2]} 17... hxg4 {[%clk 0:01:30.7]} 18. h5
{[%clk 0:01:35.1]} 18... Ne7 {[%clk 0:01:26.6]} 19. hxg6 {[%clk 0:00:43.8]}
19... fxg6 {[%clk 0:01:27.5]} 20. Rf1 {[%clk 0:00:43.6]} 20... Ng8 {[%clk
0:01:22.8]} 21. Kd1 {[%clk 0:00:33.4]} 21... Nf6 {[%clk 0:01:22.3]} 22. Nc4
{[%clk 0:00:31.9]} 22... Nh5 {[%clk 0:01:01.6]} 23. g3 {[%clk 0:00:29.1]} 23...
Nf6 {[%clk 0:00:51.6]} 24. Ke2 {[%clk 0:00:25.6]} 24... Bg5 {[%clk 0:00:50.2]}
25. a4 {[%clk 0:00:24]} 25... Rf7 {[%clk 0:00:48]} 26. b4 {[%clk 0:00:22.4]}
26... Raf8 {[%clk 0:00:45.8]} 27. Na5 {[%clk 0:00:22.4]} 27... Rb8 {[%clk
0:00:45.7]} 28. c4 {[%clk 0:00:20.7]} 28... Nh5 {[%clk 0:00:40]} 29. c5 {[%clk
0:00:18.7]} 29... Be7 {[%clk 0:00:33.3]} 30. c6 {[%clk 0:00:18.7]} 30... b6
{[%clk 0:00:33.1]} 31. Nc4 {[%clk 0:00:16.4]} 31... Rbf8 {[%clk 0:00:33.5]} 32.
b5 {[%clk 0:00:13.3]} 32... Rxf2+ {[%clk 0:00:22.3]} 33. Rxf2 {[%clk 0:00:12.7]}
33... Nxg3+ {[%clk 0:00:23.2]} 34. Ke1 {[%clk 0:00:12.7]} 34... Nxh1 {[%clk
0:00:23.8]} 35. Rxf8 {[%clk 0:00:07.6]} 35... Kxf8 {[%clk 0:00:24.7]} 36. Ne3
{[%clk 0:00:06.6]} 36... Bh4+ {[%clk 0:00:20.4]} 37. Kf1 {[%clk 0:00:06.7]}
37... Nf2 {[%clk 0:00:20]} 38. Bc2 {[%clk 0:00:06.8]} 38... Ke7 {[%clk
0:00:16.6]} 39. Kg2 {[%clk 0:00:07.4]} 39... Kf6 {[%clk 0:00:17]} 40. Nf1 {[%clk
0:00:06.4]} 40... Kg5 {[%clk 0:00:16.5]} 41. Ng3 {[%clk 0:00:07.3]} 41... Bxg3
{[%clk 0:00:16.9]} 42. Kxg3 {[%clk 0:00:07.6]} 42... Nh3 {[%clk 0:00:13.8]} 43.
Bd3 {[%clk 0:00:07.7]} 43... Nf4 {[%clk 0:00:14.1]} 44. Bf1 {[%clk 0:00:07.5]}
44... Nh5+ {[%clk 0:00:15]} 45. Kf2 {[%clk 0:00:06.2]} 45... Kf4 {[%clk
0:00:15.9]} 46. Bg2 {[%clk 0:00:06.4]} 46... Nf6 {[%clk 0:00:16.8]} 47. Ke2
{[%clk 0:00:06.5]} 47... Nxe4 {[%clk 0:00:17.7]} 0-1

[Event "*** Titled Tuesday Blitz"]
[Site "Chess.com"]
[Date "2021.04.20"]
[Round "2"]
[White "Matols"]
[Black "muchojogo"]
[Result "0-1"]
[WhiteElo "2262"]
[BlackElo "2465"]
[TimeControl "180+1"]
[EndTime "10:17:55 PDT"]
[Termination "muchojogo won on time"]

1. d4 {[%clk 0:03:00.9]} 1... Nf6 {[%clk 0:02:58.1]} 2. c4 {[%clk 0:03:00.4]}
2... c5 {[%clk 0:02:58.7]} 3. d5 {[%clk 0:03:00.1]} 3... b5 {[%clk 0:02:58.1]}
4. cxb5 {[%clk 0:02:59.8]} 4... a6 {[%clk 0:02:58.8]} 5. bxa6 {[%clk 0:02:59.9]}
5... g6 {[%clk 0:02:59.4]} 6. Nc3 {[%clk 0:02:59.2]} 6... Bg7 {[%clk 0:03:00]}
7. Nf3 {[%clk 0:02:59.4]} 7... O-O {[%clk 0:03:00]} 8. g3 {[%clk 0:02:59.6]}
8... d6 {[%clk 0:02:53.6]} 9. Bg2 {[%clk 0:02:59.4]} 9... Bxa6 {[%clk
0:02:53.1]} 10. O-O {[%clk 0:02:58.8]} 10... Nfd7 {[%clk 0:02:54]} 11. Rb1
{[%clk 0:02:57.2]} 11... Nb6 {[%clk 0:02:54.1]} 12. Nd2 {[%clk 0:02:46.2]} 12...
Bc8 {[%clk 0:02:44.9]} 13. Re1 {[%clk 0:02:38.5]} 13... Bf5 {[%clk 0:02:44.6]}
14. e4 {[%clk 0:02:37.8]} 14... Bc8 {[%clk 0:02:45.2]} 15. Qc2 {[%clk
0:02:32.8]} 15... Na6 {[%clk 0:02:41.5]} 16. a3 {[%clk 0:02:30.2]} 16... Nc7
{[%clk 0:02:35.2]} 17. b4 {[%clk 0:02:19]} 17... cxb4 {[%clk 0:02:27.9]} 18.
axb4 {[%clk 0:02:18.4]} 18... Bd7 {[%clk 0:02:26.5]} 19. Bb2 {[%clk 0:02:14.6]}
19... Qb8 {[%clk 0:02:16.4]} 20. Ra1 {[%clk 0:02:08.7]} 20... Rc8 {[%clk
0:02:14.7]} 21. Qb3 {[%clk 0:02:05.8]} 21... Nb5 {[%clk 0:01:56.6]} 22. Nxb5
{[%clk 0:02:01.6]} 22... Bxb5 {[%clk 0:01:57.5]} 23. Bxg7 {[%clk 0:02:00.2]}
23... Kxg7 {[%clk 0:01:58.4]} 24. Qb2+ {[%clk 0:01:54]} 24... f6 {[%clk
0:01:58.7]} 25. Nb3 {[%clk 0:01:42.9]} 25... Nc4 {[%clk 0:01:58]} 26. Qd4 {[%clk
0:01:37.8]} 26... Rxa1 {[%clk 0:01:55.7]} 27. Rxa1 {[%clk 0:01:37]} 27... Rc7
{[%clk 0:01:45.2]} 28. Na5 {[%clk 0:01:32]} 28... Ne5 {[%clk 0:01:38.4]} 29. f4
{[%clk 0:01:24.9]} 29... Nd7 {[%clk 0:01:38.4]} 30. Nc6 {[%clk 0:01:07.2]} 30...
Bxc6 {[%clk 0:01:37]} 31. dxc6 {[%clk 0:01:07.8]} 31... Rxc6 {[%clk 0:01:37.9]}
32. e5 {[%clk 0:01:05.6]} 32... Rb6 {[%clk 0:01:27]} 33. exf6+ {[%clk
0:00:59.7]} 33... Nxf6 {[%clk 0:01:22.2]} 34. Re1 {[%clk 0:00:54.1]} 34... Kf8
{[%clk 0:01:12.1]} 35. Rb1 {[%clk 0:00:39.3]} 35... Qc7 {[%clk 0:01:07.3]} 36.
b5 {[%clk 0:00:36.3]} 36... Qc2 {[%clk 0:01:01.3]} 37. Qb2 {[%clk 0:00:26.5]}
37... Qc5+ {[%clk 0:00:59.3]} 38. Kh1 {[%clk 0:00:22.8]} 38... Kg8 {[%clk
0:00:49.5]} 39. Bc6 {[%clk 0:00:19.9]} 39... Ng4 {[%clk 0:00:45.8]} 40. Qb3+
{[%clk 0:00:18.4]} 40... Kg7 {[%clk 0:00:45.3]} 41. Qb2+ {[%clk 0:00:18.4]}
41... Kh6 {[%clk 0:00:44.4]} 42. Kg2 {[%clk 0:00:15.2]} 42... Ne3+ {[%clk
0:00:42.5]} 43. Kh1 {[%clk 0:00:14.3]} 43... Ng4 {[%clk 0:00:37]} 44. Kg2 {[%clk
0:00:13]} 44... Ne3+ {[%clk 0:00:33]} 45. Kh1 {[%clk 0:00:12.8]} 45... Nf5
{[%clk 0:00:33.9]} 46. Rc1 {[%clk 0:00:10.2]} 46... Qe3 {[%clk 0:00:30.5]} 47.
Qc2 {[%clk 0:00:08.5]} 47... Nd4 {[%clk 0:00:27.8]} 48. Qc3 {[%clk 0:00:07.9]}
48... Qf2 {[%clk 0:00:25]} 49. f5 {[%clk 0:00:04.7]} 49... Ne2 {[%clk 0:00:21]}
50. Qd2+ {[%clk 0:00:03.5]} 50... g5 {[%clk 0:00:21.6]} 0-1